[Event "Titled Tuesday Blitz February 15 Late 2022"]
[White "Nazaretyan, Tigran"]
[Black "Holt, Conrad"]
[WhiteFideId "24162345"]
[BlackFideId "2034387"]
[WhiteElo "2192"]
[BlackElo "2586"]
[Result "1-0"]
[Round "09"]
[TimeControl "180+1"]
[Date "2022.02.15"]
[WhiteClock "0:00:17"]
[BlackClock "0:00:04"]

1. d4 {[%clk 0:03:00]}  d5 {[%clk 0:03:00]} 2. c4 {[%clk 0:03:00]}  c6 {[%clk 0:03:00]} 3. Nf3 {[%clk 0:03:00]}  Nf6 {[%clk 0:03:00]} 4. Nc3 {[%clk 0:03:00]}  dxc4 {[%clk 0:03:00]} 5. a4 {[%clk 0:03:00]}  Bf5 {[%clk 0:03:00]} 6. e3 {[%clk 0:03:00]}  e6 {[%clk 0:02:57]} 7. Bxc4 {[%clk 0:02:59]}  Bb4 {[%clk 0:02:55]} 8. O-O {[%clk 0:02:59]}  O-O {[%clk 0:02:54]} 9. Qe2 {[%clk 0:02:59]}  Nbd7 {[%clk 0:02:53]} 10. e4 {[%clk 0:02:55]}  Bg4 {[%clk 0:02:53]} 11. Rd1 {[%clk 0:02:48]}  Qa5 {[%clk 0:02:49]} 12. e5 {[%clk 0:02:35]}  Nd5 {[%clk 0:02:47]} 13. Ne4 {[%clk 0:02:35]}  f6 {[%clk 0:02:44]} 14. exf6 {[%clk 0:02:30]}  N7xf6 {[%clk 0:02:43]} 15. Neg5 {[%clk 0:02:23]}  h6 {[%clk 0:02:40]} 16. h3 {[%clk 0:02:14]}  Bh5 {[%clk 0:02:28]} 17. Qxe6+ {[%clk 0:02:00]}  Kh8 {[%clk 0:02:28]} 18. g4 {[%clk 0:01:30]}  Be8 {[%clk 0:02:08]} 19. Ne4 {[%clk 0:01:25]}  Bd7 {[%clk 0:02:06]} 20. Qe5 {[%clk 0:01:19]}  Rae8 {[%clk 0:02:03]} 21. Nxf6 {[%clk 0:01:16]}  Rxe5 {[%clk 0:01:55]} 22. Nxd7 {[%clk 0:00:56]}  Rxf3 {[%clk 0:01:55]} 23. Nxe5 {[%clk 0:00:52]}  Rf6 {[%clk 0:01:54]} 24. g5 {[%clk 0:00:51]}  hxg5 {[%clk 0:01:30]} 25. Bxg5 {[%clk 0:00:50]}  Rf5 {[%clk 0:01:31]} 26. h4 {[%clk 0:00:49]}  Bd6 {[%clk 0:01:03]} 27. Bd3 {[%clk 0:00:45]}  Rxg5+ {[%clk 0:00:22]} 28. hxg5 {[%clk 0:00:44]}  Bxe5 {[%clk 0:00:22]} 29. dxe5 {[%clk 0:00:44]}  Qd8 {[%clk 0:00:23]} 30. f4 {[%clk 0:00:37]}  Nxf4 {[%clk 0:00:09]} 31. Kf2 {[%clk 0:00:24]}  Qxg5 {[%clk 0:00:04]} 32. Rh1+ {[%clk 0:00:22]}  Kg8 {[%clk 0:00:04]} 33. Bc4+ {[%clk 0:00:22]}  Kf8 {[%clk 0:00:04]} 34. Rag1 {[%clk 0:00:18]}  Qxe5 {[%clk 0:00:04]} 35. Rh8+ {[%clk 0:00:17]}  Ke7 {[%clk 0:00:04]} 36. Re1 {[%clk 0:00:17]} 1-0


[Site "https://www.chess.com"]

[Event "Titled Tuesday Blitz February 15 Late 2022"]
[White "Petrova, Irina"]
[Black "Dovbnia, Nikita"]
[WhiteFideId "14124122"]
[BlackFideId "54104599"]
[WhiteElo "1988"]
[BlackElo "2111"]
[Result "1-0"]
[Round "09"]
[TimeControl "180+1"]
[Date "2022.02.16"]
[WhiteClock "0:00:28"]
[BlackClock "0:00:13"]

1. e4 {[%clk 0:03:00]}  c5 {[%clk 0:03:00]} 2. Nf3 {[%clk 0:03:00]}  Nc6 {[%clk 0:03:00]} 3. Bb5 {[%clk 0:03:00]}  g6 {[%clk 0:03:00]} 4. Bxc6 {[%clk 0:02:59]}  bxc6 {[%clk 0:03:01]} 5. d3 {[%clk 0:02:58]}  Bg7 {[%clk 0:03:01]} 6. O-O {[%clk 0:02:55]}  Nf6 {[%clk 0:03:01]} 7. h3 {[%clk 0:02:54]}  O-O {[%clk 0:03:01]} 8. Re1 {[%clk 0:02:53]}  d6 {[%clk 0:03:01]} 9. c3 {[%clk 0:02:52]}  Nd7 {[%clk 0:02:58]} 10. b3 {[%clk 0:02:39]}  d5 {[%clk 0:02:53]} 11. e5 {[%clk 0:02:36]}  e6 {[%clk 0:02:52]} 12. Ba3 {[%clk 0:02:22]}  Re8 {[%clk 0:02:42]} 13. c4 {[%clk 0:02:14]}  Qc7 {[%clk 0:02:36]} 14. Bb2 {[%clk 0:02:10]}  Bb7 {[%clk 0:02:15]} 15. Qe2 {[%clk 0:02:09]}  a5 {[%clk 0:02:13]} 16. Nc3 {[%clk 0:02:08]}  d4 {[%clk 0:02:08]} 17. Na4 {[%clk 0:02:07]}  Bf8 {[%clk 0:02:01]} 18. Ba3 {[%clk 0:02:04]}  Rab8 {[%clk 0:01:48]} 19. Ng5 {[%clk 0:02:03]}  h6 {[%clk 0:01:42]} 20. Ne4 {[%clk 0:02:02]}  Qxe5 {[%clk 0:01:34]} 21. Bxc5 {[%clk 0:01:57]}  Nxc5 {[%clk 0:01:20]} 22. Nexc5 {[%clk 0:01:58]}  Qxe2 {[%clk 0:01:19]} 23. Rxe2 {[%clk 0:01:58]}  Bc8 {[%clk 0:01:09]} 24. Rae1 {[%clk 0:01:48]}  Bd6 {[%clk 0:01:03]} 25. Ne4 {[%clk 0:01:44]}  Be7 {[%clk 0:00:58]} 26. f4 {[%clk 0:01:36]}  f5 {[%clk 0:00:51]} 27. Nec5 {[%clk 0:01:34]}  Kf7 {[%clk 0:00:48]} 28. Nxe6 {[%clk 0:01:28]}  Bb4 {[%clk 0:00:33]} 29. Ng5+ {[%clk 0:01:27]}  hxg5 {[%clk 0:00:32]} 30. Rxe8 {[%clk 0:01:27]}  Bxe1 {[%clk 0:00:32]} 31. Rxe1 {[%clk 0:01:28]}  gxf4 {[%clk 0:00:31]} 32. Nc5 {[%clk 0:01:23]}  Kf6 {[%clk 0:00:22]} 33. Kf2 {[%clk 0:01:23]}  g5 {[%clk 0:00:21]} 34. Kf3 {[%clk 0:01:21]}  g4+ {[%clk 0:00:17]} 35. hxg4 {[%clk 0:01:19]}  fxg4+ {[%clk 0:00:18]} 36. Kxf4 {[%clk 0:01:19]}  Bf5 {[%clk 0:00:18]} 37. Re5 {[%clk 0:01:17]}  Bg6 {[%clk 0:00:08]} 38. Re6+ {[%clk 0:01:12]}  Kf7 {[%clk 0:00:08]} 39. Rxc6 {[%clk 0:01:09]}  Re8 {[%clk 0:00:08]} 40. Rc7+ {[%clk 0:01:06]}  Kf6 {[%clk 0:00:07]} 41. Ne4+ {[%clk 0:00:49]}  Bxe4 {[%clk 0:00:07]} 42. dxe4 {[%clk 0:00:50]}  Rd8 {[%clk 0:00:08]} 43. e5+ {[%clk 0:00:45]}  Ke6 {[%clk 0:00:08]} 44. Rc6+ {[%clk 0:00:45]}  Ke7 {[%clk 0:00:07]} 45. Rd6 {[%clk 0:00:34]}  Rxd6 {[%clk 0:00:07]} 46. exd6+ {[%clk 0:00:35]}  Kxd6 {[%clk 0:00:08]} 47. Ke4 {[%clk 0:00:35]}  Kc5 {[%clk 0:00:08]} 48. g3 {[%clk 0:00:34]}  a4 {[%clk 0:00:08]} 49. Kd3 {[%clk 0:00:29]}  axb3 {[%clk 0:00:07]} 50. axb3 {[%clk 0:00:29]}  Kb4 {[%clk 0:00:08]} 51. Kd2 {[%clk 0:00:29]}  Kxb3 {[%clk 0:00:09]} 52. c5 {[%clk 0:00:28]}  Kb4 {[%clk 0:00:10]} 53. c6 {[%clk 0:00:28]}  Kb5 {[%clk 0:00:11]} 54. c7 {[%clk 0:00:28]}  Kb6 {[%clk 0:00:12]} 55. c8=Q {[%clk 0:00:29]}  Kb5 {[%clk 0:00:12]} 56. Qd7+ {[%clk 0:00:28]}  Kc4 {[%clk 0:00:13]} 57. Qc6+ {[%clk 0:00:28]}  Kb4 {[%clk 0:00:13]} 58. Kd3 {[%clk 0:00:28]} 1-0


[Site "https://www.chess.com"]

[Event "Titled Tuesday Blitz February 15 Late 2022"]
[White "Pinto, Daniel"]
[Black "Araujo Filho, Luiz Antonio Coel"]
[WhiteFideId "3303144"]
[BlackFideId "2130661"]
[WhiteElo "1938"]
[BlackElo "2216"]
[Result "1/2-1/2"]
[Round "09"]
[TimeControl "180+1"]
[Date "2022.02.16"]
[WhiteClock "0:00:21"]
[BlackClock "0:00:12"]

1. e4 {[%clk 0:02:50]}  c6 {[%clk 0:02:48]} 2. Nf3 {[%clk 0:02:41]}  d5 {[%clk 0:02:47]} 3. Nc3 {[%clk 0:02:41]}  dxe4 {[%clk 0:02:43]} 4. Nxe4 {[%clk 0:02:40]}  Nf6 {[%clk 0:02:44]} 5. Nxf6+ {[%clk 0:02:40]}  exf6 {[%clk 0:02:45]} 6. d4 {[%clk 0:02:40]}  Bd6 {[%clk 0:02:45]} 7. Bd3 {[%clk 0:02:40]}  O-O {[%clk 0:02:45]} 8. O-O {[%clk 0:02:41]}  Re8 {[%clk 0:02:45]} 9. c3 {[%clk 0:02:40]}  Nd7 {[%clk 0:02:46]} 10. h3 {[%clk 0:02:34]}  Nf8 {[%clk 0:02:45]} 11. Bc2 {[%clk 0:02:32]}  Be6 {[%clk 0:02:42]} 12. Nh4 {[%clk 0:02:31]}  Qd7 {[%clk 0:02:41]} 13. Qh5 {[%clk 0:02:24]}  Bxh3 {[%clk 0:02:29]} 14. Nf5 {[%clk 0:01:43]}  Bxf5 {[%clk 0:02:22]} 15. Bxf5 {[%clk 0:01:44]}  Qc7 {[%clk 0:02:14]} 16. Bd3 {[%clk 0:01:42]}  Re7 {[%clk 0:01:49]} 17. Qf3 {[%clk 0:01:34]}  Rae8 {[%clk 0:01:46]} 18. Bd2 {[%clk 0:01:34]}  a6 {[%clk 0:01:26]} 19. Rfe1 {[%clk 0:01:34]}  Rxe1+ {[%clk 0:01:25]} 20. Rxe1 {[%clk 0:01:35]}  Rxe1+ {[%clk 0:01:25]} 21. Bxe1 {[%clk 0:01:36]}  Qe7 {[%clk 0:01:22]} 22. Bd2 {[%clk 0:01:35]}  Ne6 {[%clk 0:01:21]} 23. g3 {[%clk 0:01:32]}  Ng5 {[%clk 0:01:13]} 24. Qf5 {[%clk 0:01:32]}  Qe6 {[%clk 0:01:05]} 25. Bxg5 {[%clk 0:01:29]}  Qxf5 {[%clk 0:01:00]} 26. Bxf5 {[%clk 0:01:28]}  fxg5 {[%clk 0:00:56]} 27. Bc8 {[%clk 0:01:29]}  b6 {[%clk 0:00:29]} 28. Bxa6 {[%clk 0:01:30]}  Kf8 {[%clk 0:00:24]} 29. b4 {[%clk 0:01:29]}  Ke7 {[%clk 0:00:22]} 30. Bb7 {[%clk 0:01:28]}  Kd7 {[%clk 0:00:21]} 31. a4 {[%clk 0:01:22]}  f5 {[%clk 0:00:18]} 32. a5 {[%clk 0:00:52]}  bxa5 {[%clk 0:00:15]} 33. bxa5 {[%clk 0:00:53]}  Kc7 {[%clk 0:00:14]} 34. Ba8 {[%clk 0:00:52]}  Ba3 {[%clk 0:00:10]} 35. c4 {[%clk 0:00:49]}  Bb4 {[%clk 0:00:07]} 36. a6 {[%clk 0:00:47]}  Kb6 {[%clk 0:00:06]} 37. a7 {[%clk 0:00:33]}  c5 {[%clk 0:00:03]} 38. dxc5+ {[%clk 0:00:15]}  Bxc5 {[%clk 0:00:02]} 39. Be4 {[%clk 0:00:15]}  Kxa7 {[%clk 0:00:03]} 40. Bxf5 {[%clk 0:00:15]}  h6 {[%clk 0:00:03]} 41. Kg2 {[%clk 0:00:15]}  Kb6 {[%clk 0:00:03]} 42. Be4 {[%clk 0:00:14]}  Kc7 {[%clk 0:00:03]} 43. f3 {[%clk 0:00:14]}  Kd6 {[%clk 0:00:04]} 44. Kh3 {[%clk 0:00:14]}  Ke5 {[%clk 0:00:04]} 45. Kg4 {[%clk 0:00:15]}  Kf6 {[%clk 0:00:04]} 46. Kh5 {[%clk 0:00:14]}  Bd4 {[%clk 0:00:04]} 47. Bd5 {[%clk 0:00:14]}  Bf2 {[%clk 0:00:04]} 48. Kg4 {[%clk 0:00:13]}  Bc5 {[%clk 0:00:04]} 49. Be4 {[%clk 0:00:12]}  Bd4 {[%clk 0:00:03]} 50. Kh3 {[%clk 0:00:13]}  Bc5 {[%clk 0:00:03]} 51. Kg2 {[%clk 0:00:13]}  Ke5 {[%clk 0:00:04]} 52. Kf1 {[%clk 0:00:13]}  Kd4 {[%clk 0:00:04]} 53. Bd5 {[%clk 0:00:14]}  Ke3 {[%clk 0:00:04]} 54. Kg2 {[%clk 0:00:13]}  h5 {[%clk 0:00:05]} 55. Kh3 {[%clk 0:00:12]}  Be7 {[%clk 0:00:04]} 56. Bf7 {[%clk 0:00:12]}  h4 {[%clk 0:00:04]} 57. gxh4 {[%clk 0:00:10]}  gxh4 {[%clk 0:00:05]} 58. Bd5 {[%clk 0:00:11]}  Kf4 {[%clk 0:00:05]} 59. Bb7 {[%clk 0:00:08]}  g5 {[%clk 0:00:05]} 60. Bc6 {[%clk 0:00:09]}  Bd8 {[%clk 0:00:05]} 61. Bd5 {[%clk 0:00:09]}  Be7 {[%clk 0:00:05]} 62. Bc6 {[%clk 0:00:09]}  Bd6 {[%clk 0:00:05]} 63. Be4 {[%clk 0:00:10]}  Be7 {[%clk 0:00:06]} 64. Bd5 {[%clk 0:00:09]}  Bd6 {[%clk 0:00:06]} 65. Kg2 {[%clk 0:00:08]}  Be7 {[%clk 0:00:06]} 66. Be6 {[%clk 0:00:08]}  Bd6 {[%clk 0:00:06]} 67. Bg4 {[%clk 0:00:08]}  Be7 {[%clk 0:00:06]} 68. Kf1 {[%clk 0:00:08]}  Bd6 {[%clk 0:00:06]} 69. Kg2 {[%clk 0:00:09]}  Be7 {[%clk 0:00:06]} 70. Bh3 {[%clk 0:00:08]}  Bd6 {[%clk 0:00:07]} 71. Bc8 {[%clk 0:00:08]}  Bc5 {[%clk 0:00:07]} 72. Bg4 {[%clk 0:00:09]}  Bd6 {[%clk 0:00:07]} 73. c5 {[%clk 0:00:10]}  Bxc5 {[%clk 0:00:07]} 74. Bh3 {[%clk 0:00:09]}  Bd6 {[%clk 0:00:07]} 75. Bd7 {[%clk 0:00:10]}  Ke3 {[%clk 0:00:07]} 76. Bc6 {[%clk 0:00:08]}  Kf4 {[%clk 0:00:07]} 77. Kh3 {[%clk 0:00:09]}  Bc7 {[%clk 0:00:07]} 78. Bd5 {[%clk 0:00:10]}  Bd8 {[%clk 0:00:07]} 79. Bb7 {[%clk 0:00:10]}  Be7 {[%clk 0:00:07]} 80. Bc6 {[%clk 0:00:11]}  Bd8 {[%clk 0:00:07]} 81. Bb7 {[%clk 0:00:12]}  Bc7 {[%clk 0:00:07]} 82. Bc6 {[%clk 0:00:12]}  Ba5 {[%clk 0:00:07]} 83. Ba8 {[%clk 0:00:12]}  Bd2 {[%clk 0:00:08]} 84. Bc6 {[%clk 0:00:12]}  Be1 {[%clk 0:00:08]} 85. Bb7 {[%clk 0:00:13]}  Bg3 {[%clk 0:00:08]} 86. Bc6 {[%clk 0:00:13]}  Bf2 {[%clk 0:00:08]} 87. Bb7 {[%clk 0:00:14]}  Bd4 {[%clk 0:00:09]} 88. Bc6 {[%clk 0:00:15]}  Bf6 {[%clk 0:00:09]} 89. Bb7 {[%clk 0:00:15]}  Ke3 {[%clk 0:00:09]} 90. Bc6 {[%clk 0:00:16]}  Kf2 {[%clk 0:00:10]} 91. Bb7 {[%clk 0:00:16]}  Kg1 {[%clk 0:00:10]} 92. Bc6 {[%clk 0:00:17]}  Kf2 {[%clk 0:00:10]} 93. Bb7 {[%clk 0:00:17]}  Ke3 {[%clk 0:00:11]} 94. Bc6 {[%clk 0:00:18]}  Kf4 {[%clk 0:00:11]} 95. Bb7 {[%clk 0:00:18]}  Be7 {[%clk 0:00:11]} 96. Bc6 {[%clk 0:00:19]}  Bd6 {[%clk 0:00:12]} 97. Bb7 {[%clk 0:00:20]}  Ke5 {[%clk 0:00:12]} 98. Ba8 {[%clk 0:00:20]}  Kf4 {[%clk 0:00:12]} 99. Bb7 {[%clk 0:00:21]}  Be7 {[%clk 0:00:12]} 1/2-1/2


[Site "https://www.chess.com"]

[Event "Titled Tuesday Blitz February 15 Late 2022"]
[White "Quirke, Jeffrey"]
[Black "Li, Hui"]
[WhiteFideId "2013029"]
[BlackFideId "15400310"]
[WhiteElo "2193"]
[BlackElo "1954"]
[Result "0-1"]
[Round "09"]
[TimeControl "180+1"]
[Date "2022.02.16"]
[WhiteClock "0:00:03"]
[BlackClock "0:00:06"]

1. c4 {[%clk 0:03:00]}  e6 {[%clk 0:03:00]} 2. Nc3 {[%clk 0:02:57]}  d5 {[%clk 0:03:00]} 3. d4 {[%clk 0:02:57]}  Nf6 {[%clk 0:03:01]} 4. cxd5 {[%clk 0:02:56]}  exd5 {[%clk 0:03:00]} 5. Bg5 {[%clk 0:02:57]}  c6 {[%clk 0:03:00]} 6. e3 {[%clk 0:02:57]}  Be7 {[%clk 0:03:00]} 7. Bd3 {[%clk 0:02:57]}  Nbd7 {[%clk 0:02:57]} 8. Nf3 {[%clk 0:02:57]}  O-O {[%clk 0:02:58]} 9. Qc2 {[%clk 0:02:57]}  Re8 {[%clk 0:02:58]} 10. O-O-O {[%clk 0:02:57]}  Nf8 {[%clk 0:02:57]} 11. Ne5 {[%clk 0:02:55]}  Be6 {[%clk 0:02:43]} 12. Kb1 {[%clk 0:02:54]}  Rc8 {[%clk 0:02:42]} 13. f4 {[%clk 0:02:49]}  Ng4 {[%clk 0:02:22]} 14. Nxg4 {[%clk 0:02:29]}  Bxg4 {[%clk 0:02:12]} 15. Bxe7 {[%clk 0:02:28]}  Qxe7 {[%clk 0:02:12]} 16. Rde1 {[%clk 0:02:29]}  Bd7 {[%clk 0:02:02]} 17. h3 {[%clk 0:02:28]}  Qd6 {[%clk 0:01:49]} 18. g4 {[%clk 0:02:21]}  c5 {[%clk 0:01:49]} 19. Qf2 {[%clk 0:02:02]}  c4 {[%clk 0:01:24]} 20. Bc2 {[%clk 0:01:53]}  b5 {[%clk 0:01:24]} 21. Qf3 {[%clk 0:01:41]}  Bc6 {[%clk 0:01:18]} 22. e4 {[%clk 0:01:19]}  dxe4 {[%clk 0:01:17]} 23. Bxe4 {[%clk 0:01:19]}  Bxe4+ {[%clk 0:01:05]} 24. Rxe4 {[%clk 0:00:59]}  b4 {[%clk 0:01:01]} 25. Ne2 {[%clk 0:00:54]}  Qd5 {[%clk 0:00:44]} 26. Ng3 {[%clk 0:00:41]}  Rxe4 {[%clk 0:00:42]} 27. Qxe4 {[%clk 0:00:38]}  Rd8 {[%clk 0:00:36]} 28. Rd1 {[%clk 0:00:37]}  g6 {[%clk 0:00:23]} 29. Qxd5 {[%clk 0:00:28]}  Rxd5 {[%clk 0:00:22]} 30. Ne2 {[%clk 0:00:29]}  Ne6 {[%clk 0:00:20]} 31. Kc2 {[%clk 0:00:21]}  Rd8 {[%clk 0:00:17]} 32. d5 {[%clk 0:00:17]}  Nc5 {[%clk 0:00:15]} 33. Rd4 {[%clk 0:00:17]}  b3+ {[%clk 0:00:09]} 34. axb3 {[%clk 0:00:16]}  cxb3+ {[%clk 0:00:08]} 35. Kc3 {[%clk 0:00:16]}  Nd7 {[%clk 0:00:05]} 36. Kxb3 {[%clk 0:00:15]}  Nb6 {[%clk 0:00:05]} 37. Nc3 {[%clk 0:00:14]}  Kf8 {[%clk 0:00:05]} 38. Kb4 {[%clk 0:00:12]}  Ke7 {[%clk 0:00:05]} 39. Kb5 {[%clk 0:00:12]}  Kd7 {[%clk 0:00:04]} 40. Ka6 {[%clk 0:00:12]}  Nc8 {[%clk 0:00:03]} 41. Nb5 {[%clk 0:00:12]}  Nd6 {[%clk 0:00:03]} 42. Nxd6 {[%clk 0:00:11]}  Kxd6 {[%clk 0:00:04]} 43. Kxa7 {[%clk 0:00:11]}  Re8 {[%clk 0:00:05]} 44. b4 {[%clk 0:00:11]}  Re2 {[%clk 0:00:05]} 45. b5 {[%clk 0:00:10]}  Ra2+ {[%clk 0:00:05]} 46. Kb7 {[%clk 0:00:09]}  Ra3 {[%clk 0:00:05]} 47. b6 {[%clk 0:00:08]}  Rb3 {[%clk 0:00:06]} 48. h4 {[%clk 0:00:06]}  Kc5 {[%clk 0:00:06]} 49. d6 {[%clk 0:00:03]}  Rxb6+ {[%clk 0:00:04]} 50. Kc7 {[%clk 0:00:03]}  Rc6+ {[%clk 0:00:04]} 51. Kb7 {[%clk 0:00:01]}  Rb6+ {[%clk 0:00:05]} 52. Kc7 {[%clk 0:00:01]}  Rc6+ {[%clk 0:00:05]} 53. Kb7 {[%clk 0:00:02]}  Rxd6 {[%clk 0:00:04]} 54. Rxd6 {[%clk 0:00:01]}  Kxd6 {[%clk 0:00:05]} 55. Kc8 {[%clk 0:00:02]}  Kd5 {[%clk 0:00:05]} 56. Kd7 {[%clk 0:00:01]}  Ke4 {[%clk 0:00:05]} 57. Ke7 {[%clk 0:00:02]}  Kxf4 {[%clk 0:00:06]} 58. Kxf7 {[%clk 0:00:03]}  Kxg4 {[%clk 0:00:06]} 0-1


[Site "https://www.chess.com"]

[Event "Titled Tuesday Blitz February 15 Late 2022"]
[White "Ramirez, Alejandro"]
[Black "Degardin, Sylvain"]
[WhiteFideId "6500617"]
[BlackFideId "20623070"]
[WhiteElo "2694"]
[BlackElo "2156"]
[Result "1-0"]
[Round "09"]
[TimeControl "180+1"]
[Date "2022.02.15"]
[WhiteClock "0:00:47"]
[BlackClock "0:00:01"]

1. d4 {[%clk 0:02:59]}  Nf6 {[%clk 0:02:59]} 2. c4 {[%clk 0:02:57]}  g6 {[%clk 0:02:59]} 3. Nc3 {[%clk 0:02:57]}  d5 {[%clk 0:02:59]} 4. cxd5 {[%clk 0:02:57]}  Nxd5 {[%clk 0:03:00]} 5. e4 {[%clk 0:02:58]}  Nxc3 {[%clk 0:03:00]} 6. bxc3 {[%clk 0:02:59]}  Bg7 {[%clk 0:03:00]} 7. Be3 {[%clk 0:03:00]}  c5 {[%clk 0:03:00]} 8. Qd2 {[%clk 0:03:00]}  O-O {[%clk 0:02:52]} 9. Rc1 {[%clk 0:02:55]}  e5 {[%clk 0:02:42]} 10. d5 {[%clk 0:02:54]}  Qd6 {[%clk 0:02:32]} 11. Bd3 {[%clk 0:02:48]}  f5 {[%clk 0:02:28]} 12. f3 {[%clk 0:02:48]}  f4 {[%clk 0:02:23]} 13. Bf2 {[%clk 0:02:48]}  Nd7 {[%clk 0:02:17]} 14. Ne2 {[%clk 0:02:45]}  Nf6 {[%clk 0:02:08]} 15. g4 {[%clk 0:02:29]}  fxg3 {[%clk 0:01:35]} 16. hxg3 {[%clk 0:02:29]}  Nh5 {[%clk 0:01:31]} 17. Qe3 {[%clk 0:02:27]}  b6 {[%clk 0:01:27]} 18. Bb5 {[%clk 0:02:20]}  Qf6 {[%clk 0:01:13]} 19. Ng1 {[%clk 0:01:41]}  Rf7 {[%clk 0:00:27]} 20. Be2 {[%clk 0:01:38]}  Bf8 {[%clk 0:00:21]} 21. Kf1 {[%clk 0:01:28]}  Bd6 {[%clk 0:00:21]} 22. Nh3 {[%clk 0:01:24]}  Bd7 {[%clk 0:00:17]} 23. Kg2 {[%clk 0:01:17]}  Raf8 {[%clk 0:00:12]} 24. Rcf1 {[%clk 0:01:18]}  Be7 {[%clk 0:00:05]} 25. Be1 {[%clk 0:01:17]}  Bd6 {[%clk 0:00:05]} 26. Qc1 {[%clk 0:01:13]}  Bxh3+ {[%clk 0:00:04]} 27. Rxh3 {[%clk 0:01:13]}  Kg7 {[%clk 0:00:02]} 28. Bd2 {[%clk 0:01:13]}  Qe7 {[%clk 0:00:01]} 29. Bh6+ {[%clk 0:01:13]}  Kg8 {[%clk 0:00:01]} 30. Bxf8 {[%clk 0:01:13]}  Qxf8 {[%clk 0:00:02]} 31. Qg5 {[%clk 0:01:00]}  Qg7 {[%clk 0:00:01]} 32. f4 {[%clk 0:00:49]}  Be7 {[%clk 0:00:01]} 33. Qg4 {[%clk 0:00:46]}  exf4 {[%clk 0:00:01]} 34. gxf4 {[%clk 0:00:47]}  Qxc3 {[%clk 0:00:01]} 35. Rxc3 {[%clk 0:00:47]} 1-0


[Site "https://www.chess.com"]

[Event "Titled Tuesday Blitz February 15 Late 2022"]
[White "Rasulov, Vugar"]
[Black "Mekhitarian, Krikor Sevag"]
[WhiteFideId "13402390"]
[BlackFideId "2107660"]
[WhiteElo "2560"]
[BlackElo "2598"]
[Result "0-1"]
[Round "09"]
[TimeControl "180+1"]
[Date "2022.02.15"]
[WhiteClock "0:00:16"]
[BlackClock "0:00:02"]

1. d4 {[%clk 0:03:00]}  Nf6 {[%clk 0:02:59]} 2. c4 {[%clk 0:03:01]}  g6 {[%clk 0:03:00]} 3. Nc3 {[%clk 0:03:01]}  d5 {[%clk 0:03:00]} 4. Nf3 {[%clk 0:03:01]}  Bg7 {[%clk 0:03:00]} 5. Bg5 {[%clk 0:03:01]}  dxc4 {[%clk 0:02:59]} 6. e4 {[%clk 0:02:58]}  c5 {[%clk 0:02:58]} 7. d5 {[%clk 0:02:54]}  b5 {[%clk 0:02:58]} 8. e5 {[%clk 0:02:50]}  b4 {[%clk 0:02:58]} 9. exf6 {[%clk 0:02:50]}  exf6 {[%clk 0:02:59]} 10. Bd2 {[%clk 0:02:45]}  bxc3 {[%clk 0:02:55]} 11. Bxc3 {[%clk 0:02:46]}  O-O {[%clk 0:02:45]} 12. Be2 {[%clk 0:02:43]}  Nd7 {[%clk 0:02:45]} 13. O-O {[%clk 0:02:39]}  Nb6 {[%clk 0:02:45]} 14. d6 {[%clk 0:02:38]}  Bb7 {[%clk 0:02:36]} 15. a4 {[%clk 0:02:37]}  Nd5 {[%clk 0:02:03]} 16. Bxc4 {[%clk 0:02:29]}  Qxd6 {[%clk 0:02:03]} 17. Qd2 {[%clk 0:02:25]}  Rad8 {[%clk 0:01:56]} 18. Rad1 {[%clk 0:02:21]}  Qb8 {[%clk 0:01:46]} 19. Qc2 {[%clk 0:01:50]}  Nxc3 {[%clk 0:01:32]} 20. Qxc3 {[%clk 0:01:51]}  f5 {[%clk 0:01:29]} 21. Qb3 {[%clk 0:01:51]}  Bxf3 {[%clk 0:01:03]} 22. Qxf3 {[%clk 0:01:52]}  Qxb2 {[%clk 0:01:02]} 23. h4 {[%clk 0:01:36]}  Qb4 {[%clk 0:00:51]} 24. Qe2 {[%clk 0:01:28]}  Qxa4 {[%clk 0:00:43]} 25. h5 {[%clk 0:01:28]}  Qc6 {[%clk 0:00:36]} 26. Rxd8 {[%clk 0:01:15]}  Rxd8 {[%clk 0:00:35]} 27. Qe7 {[%clk 0:01:16]}  Qd7 {[%clk 0:00:24]} 28. Qxc5 {[%clk 0:01:11]}  Bd4 {[%clk 0:00:18]} 29. Qa5 {[%clk 0:01:06]}  Kg7 {[%clk 0:00:13]} 30. Qd2 {[%clk 0:01:02]}  Qd6 {[%clk 0:00:12]} 31. h6+ {[%clk 0:01:02]}  Kf8 {[%clk 0:00:11]} 32. Qa2 {[%clk 0:00:55]}  Qc7 {[%clk 0:00:05]} 33. Rb1 {[%clk 0:00:45]}  Bb6 {[%clk 0:00:05]} 34. Rf1 {[%clk 0:00:36]}  Rd4 {[%clk 0:00:04]} 35. Be2 {[%clk 0:00:29]}  Rh4 {[%clk 0:00:04]} 36. Qa3+ {[%clk 0:00:18]}  Bc5 {[%clk 0:00:02]} 37. Qc3 {[%clk 0:00:16]}  Qh2# {[%clk 0:00:02]} 0-1


[Site "https://www.chess.com"]

[Event "Titled Tuesday Blitz February 15 Late 2022"]
[White "Reprintsev, Alexander"]
[Black "Novikova, Galina"]
[WhiteFideId "14100541"]
[BlackFideId "4157095"]
[WhiteElo "2126"]
[BlackElo "1863"]
[Result "1-0"]
[Round "09"]
[TimeControl "180+1"]
[Date "2022.02.16"]
[WhiteClock "0:00:10"]
[BlackClock "0:00:28"]

1. e4 {[%clk 0:02:48]}  e6 {[%clk 0:03:00]} 2. Qe2 {[%clk 0:02:46]}  d5 {[%clk 0:03:01]} 3. exd5 {[%clk 0:02:46]}  Qxd5 {[%clk 0:03:02]} 4. Nc3 {[%clk 0:02:45]}  Qd8 {[%clk 0:03:03]} 5. Nf3 {[%clk 0:02:45]}  Nf6 {[%clk 0:03:03]} 6. d4 {[%clk 0:02:45]}  c6 {[%clk 0:03:01]} 7. Bd2 {[%clk 0:02:39]}  Be7 {[%clk 0:03:01]} 8. O-O-O {[%clk 0:02:38]}  b5 {[%clk 0:03:01]} 9. Ne5 {[%clk 0:02:34]}  a5 {[%clk 0:02:58]} 10. g4 {[%clk 0:02:32]}  O-O {[%clk 0:02:56]} 11. Bg2 {[%clk 0:02:30]}  Qb6 {[%clk 0:02:51]} 12. Nxb5 {[%clk 0:02:09]}  Ba6 {[%clk 0:02:50]} 13. c4 {[%clk 0:01:59]}  cxb5 {[%clk 0:02:26]} 14. Bxa8 {[%clk 0:01:56]}  bxc4 {[%clk 0:02:26]} 15. Bc3 {[%clk 0:01:53]}  Bb4 {[%clk 0:02:21]} 16. g5 {[%clk 0:01:46]}  Nd5 {[%clk 0:02:10]} 17. Bxd5 {[%clk 0:01:45]}  exd5 {[%clk 0:02:10]} 18. f4 {[%clk 0:01:30]}  Bxc3 {[%clk 0:02:07]} 19. bxc3 {[%clk 0:01:30]}  Bc8 {[%clk 0:02:07]} 20. Qb2 {[%clk 0:01:27]}  Qd8 {[%clk 0:02:01]} 21. Qxb8 {[%clk 0:01:25]}  Qe7 {[%clk 0:01:53]} 22. Qb2 {[%clk 0:01:20]}  Bf5 {[%clk 0:01:53]} 23. Rhe1 {[%clk 0:01:19]}  Qc7 {[%clk 0:01:48]} 24. Kd2 {[%clk 0:01:11]}  Rb8 {[%clk 0:01:47]} 25. Qa3 {[%clk 0:01:11]}  f6 {[%clk 0:01:26]} 26. gxf6 {[%clk 0:01:10]}  gxf6 {[%clk 0:01:24]} 27. Rg1+ {[%clk 0:01:10]}  Kh8 {[%clk 0:01:24]} 28. Qc5 {[%clk 0:01:02]}  Qb7 {[%clk 0:00:59]} 29. Ke3 {[%clk 0:00:52]}  fxe5 {[%clk 0:00:55]} 30. fxe5 {[%clk 0:00:49]}  Qb2 {[%clk 0:00:44]} 31. Qe7 {[%clk 0:00:18]}  Qxc3+ {[%clk 0:00:40]} 32. Kf4 {[%clk 0:00:18]}  Bg6 {[%clk 0:00:38]} 33. Qf6+ {[%clk 0:00:16]}  Kg8 {[%clk 0:00:38]} 34. Rxg6+ {[%clk 0:00:16]}  hxg6 {[%clk 0:00:39]} 35. Qxg6+ {[%clk 0:00:16]}  Kf8 {[%clk 0:00:40]} 36. Qd6+ {[%clk 0:00:16]}  Kf7 {[%clk 0:00:39]} 37. e6+ {[%clk 0:00:16]}  Kf6 {[%clk 0:00:37]} 38. e7+ {[%clk 0:00:13]}  Kf7 {[%clk 0:00:37]} 39. Qxb8 {[%clk 0:00:12]}  Kxe7 {[%clk 0:00:31]} 40. Qe5+ {[%clk 0:00:10]}  Kf7 {[%clk 0:00:31]} 41. Qxd5+ {[%clk 0:00:11]}  Kf6 {[%clk 0:00:30]} 42. Qe5+ {[%clk 0:00:10]}  Kf7 {[%clk 0:00:30]} 43. d5 {[%clk 0:00:10]}  Qh3 {[%clk 0:00:29]} 44. Qf5+ {[%clk 0:00:09]}  Qxf5+ {[%clk 0:00:28]} 45. Kxf5 {[%clk 0:00:10]} 1-0


[Site "https://www.chess.com"]